[Event "*** Titled Tuesday Blitz"]
[Site "Chess.com"]
[Date "2019.11.05"]
[Round "2"]
[White "xamax2000"]
[Black "AryanTari"]
[Result "0-1"]
[WhiteElo "2583"]
[BlackElo "2844"]
[TimeControl "180+2"]
[EndTime "13:25:45 PST"]
[Termination "AryanTari won by resignation"]

1. e4 {[%clk 0:03:01.9]} 1... c5 {[%clk 0:02:59.6]} 2. Nf3 {[%clk 0:03:01.4]}
2... Nc6 {[%clk 0:02:56.4]} 3. d4 {[%clk 0:03:02.3]} 3... cxd4 {[%clk
0:02:58.3]} 4. Nxd4 {[%clk 0:03:04.2]} 4... Nf6 {[%clk 0:02:57.9]} 5. Nc3 {[%clk
0:03:05.3]} 5... e5 {[%clk 0:02:58.7]} 6. Ndb5 {[%clk 0:03:06.2]} 6... d6 {[%clk
0:02:59.8]} 7. Nd5 {[%clk 0:03:08.1]} 7... Nxd5 {[%clk 0:03:00.7]} 8. exd5
{[%clk 0:03:10]} 8... Nb8 {[%clk 0:03:02.2]} 9. a4 {[%clk 0:03:11.6]} 9... Be7
{[%clk 0:03:02.6]} 10. Be2 {[%clk 0:03:13]} 10... O-O {[%clk 0:03:03.8]} 11. O-O
{[%clk 0:03:13.6]} 11... Nd7 {[%clk 0:03:05.1]} 12. Bd2 {[%clk 0:03:13.4]} 12...
a6 {[%clk 0:02:58.8]} 13. Na3 {[%clk 0:03:14.6]} 13... f5 {[%clk 0:02:54.7]} 14.
a5 {[%clk 0:03:15.2]} 14... Nc5 {[%clk 0:02:54.2]} 15. Nc4 {[%clk 0:03:12.6]}
15... f4 {[%clk 0:02:50.2]} 16. Nb6 {[%clk 0:03:09.6]} 16... Rb8 {[%clk
0:02:51]} 17. Nxc8 {[%clk 0:03:05.4]} 17... Rxc8 {[%clk 0:02:52.9]} 18. Bg4
{[%clk 0:03:05.7]} 18... Rc7 {[%clk 0:02:50.3]} 19. Re1 {[%clk 0:02:59.4]} 19...
Bf6 {[%clk 0:02:39]} 20. b4 {[%clk 0:02:58.6]} 20... Nd7 {[%clk 0:02:40]} 21.
Ra3 {[%clk 0:02:52.4]} 21... Kh8 {[%clk 0:02:33.1]} 22. Rh3 {[%clk 0:02:46.4]}
22... h6 {[%clk 0:02:27.5]} 23. c3 {[%clk 0:02:24.9]} 23... Bg5 {[%clk
0:02:23.3]} 24. Be6 {[%clk 0:02:23.8]} 24... Nf6 {[%clk 0:02:20.1]} 25. Qc2
{[%clk 0:02:20.4]} 25... e4 {[%clk 0:02:18]} 26. c4 {[%clk 0:02:12.3]} 26... Qe8
{[%clk 0:02:06.5]} 27. Bc1 {[%clk 0:01:46.9]} 27... Qb5 {[%clk 0:01:44.9]} 28.
Rc3 {[%clk 0:01:32.4]} 28... Qe8 {[%clk 0:01:39.7]} 29. c5 {[%clk 0:01:17.3]}
29... Qh5 {[%clk 0:01:33.3]} 30. Rh3 {[%clk 0:01:14.8]} 30... Qg6 {[%clk
0:01:31.5]} 31. Bb2 {[%clk 0:01:09.2]} 31... Nd7 {[%clk 0:00:55.4]} 32. Bd4
{[%clk 0:00:51.7]} 32... Bf6 {[%clk 0:00:53.3]} 33. Bxf6 {[%clk 0:00:27.9]}
33... Nxf6 {[%clk 0:00:55.2]} 34. Rc3 {[%clk 0:00:28.9]} 34... Qg5 {[%clk
0:00:48.7]} 35. cxd6 {[%clk 0:00:22.3]} 35... Rxc3 {[%clk 0:00:49.6]} 36. Qxc3
{[%clk 0:00:24.2]} 36... e3 {[%clk 0:00:45.5]} 37. f3 {[%clk 0:00:18.1]} 37...
Nxd5 {[%clk 0:00:30.9]} 38. Qd4 {[%clk 0:00:18]} 38... Nf6 {[%clk 0:00:20.8]}
39. d7 {[%clk 0:00:14.3]} 39... Rd8 {[%clk 0:00:21.9]} 40. g3 {[%clk 0:00:15]}
40... fxg3 {[%clk 0:00:20.6]} 41. h4 {[%clk 0:00:16.3]} 41... Qb5 {[%clk
0:00:18.9]} 42. Rxe3 {[%clk 0:00:17.5]} 42... Nxd7 {[%clk 0:00:17.6]} 43. Rd3
{[%clk 0:00:18]} 43... Qc6 {[%clk 0:00:08.3]} 44. Bxd7 {[%clk 0:00:18.3]} 44...
Qc2 {[%clk 0:00:08.5]} 45. Rd2 {[%clk 0:00:18.8]} 45... Qg6 {[%clk 0:00:10]} 46.
Kg2 {[%clk 0:00:19.4]} 46... Rf8 {[%clk 0:00:10.8]} 47. Bg4 {[%clk 0:00:19.6]}
47... h5 {[%clk 0:00:12.3]} 48. Bh3 {[%clk 0:00:19.2]} 48... Qf7 {[%clk
0:00:14]} 49. Qe4 {[%clk 0:00:20]} 49... Re8 {[%clk 0:00:13.7]} 50. Qd3 {[%clk
0:00:19.4]} 50... Qf4 {[%clk 0:00:14.2]} 51. Bf5 {[%clk 0:00:19.8]} 51... Qxh4
{[%clk 0:00:14.2]} 52. Bh3 {[%clk 0:00:18.7]} 52... Qf4 {[%clk 0:00:15.4]} 53.
Re2 {[%clk 0:00:20.2]} 53... Rf8 {[%clk 0:00:14.4]} 54. Re4 {[%clk 0:00:20.1]}
54... Qc7 {[%clk 0:00:15.8]} 55. Rd4 {[%clk 0:00:19.6]} 55... Qe5 {[%clk
0:00:16.3]} 56. Rd8 {[%clk 0:00:19.4]} 56... Qb2+ {[%clk 0:00:07.9]} 57. Kxg3
{[%clk 0:00:18.8]} 57... Qe5+ {[%clk 0:00:09.3]} 58. Kg2 {[%clk 0:00:18.3]}
58... Qg5+ {[%clk 0:00:10.2]} 59. Bg4 {[%clk 0:00:18.4]} 59... Rxd8 {[%clk
0:00:11.1]} 0-1

[Event "*** Titled Tuesday Blitz"]
[Site "Chess.com"]
[Date "2019.11.05"]
[Round "2"]
[White "Azatic"]
[Black "MathiasWomacka"]
[Result "1-0"]
[WhiteElo "2637"]
[BlackElo "2304"]
[TimeControl "180+2"]
[EndTime "13:25:55 PST"]
[Termination "Azatic won by resignation"]

1. e4 {[%clk 0:03:01.9]} 1... c5 {[%clk 0:03:00.6]} 2. Nf3 {[%clk 0:03:02.8]}
2... d6 {[%clk 0:03:01.5]} 3. d4 {[%clk 0:03:04.1]} 3... cxd4 {[%clk 0:03:03.4]}
4. Nxd4 {[%clk 0:03:06]} 4... Nf6 {[%clk 0:03:04.3]} 5. Nc3 {[%clk 0:03:07.3]}
5... a6 {[%clk 0:03:05.8]} 6. Be3 {[%clk 0:03:08.4]} 6... e5 {[%clk 0:03:06.7]}
7. Nb3 {[%clk 0:03:09.5]} 7... Be6 {[%clk 0:03:07.7]} 8. Qd2 {[%clk 0:03:09.7]}
8... Nbd7 {[%clk 0:03:03.5]} 9. O-O-O {[%clk 0:03:10.1]} 9... Be7 {[%clk
0:03:04.5]} 10. f3 {[%clk 0:03:10.8]} 10... O-O {[%clk 0:03:03.8]} 11. g4 {[%clk
0:03:11.7]} 11... Qc7 {[%clk 0:03:04.1]} 12. Kb1 {[%clk 0:03:09.1]} 12... b5
{[%clk 0:03:02.6]} 13. g5 {[%clk 0:03:09.1]} 13... Nh5 {[%clk 0:03:03.4]} 14.
Nd5 {[%clk 0:03:03.7]} 14... Bxd5 {[%clk 0:03:04.5]} 15. exd5 {[%clk 0:03:05.6]}
15... Nb6 {[%clk 0:03:05.2]} 16. Na5 {[%clk 0:02:50.3]} 16... Nxd5 {[%clk
0:03:05.1]} 17. Qxd5 {[%clk 0:02:52.2]} 17... Qxa5 {[%clk 0:03:06.1]} 18. Bd3
{[%clk 0:02:50.6]} 18... Qb4 {[%clk 0:02:55.7]} 19. Rhg1 {[%clk 0:02:44.7]}
19... g6 {[%clk 0:02:42.4]} 20. Rg4 {[%clk 0:02:40.9]} 20... Nf4 {[%clk
0:02:43.4]} 21. Bxf4 {[%clk 0:02:35.8]} 21... exf4 {[%clk 0:02:45.3]} 22. h4
{[%clk 0:02:34.7]} 22... Rfe8 {[%clk 0:02:31.6]} 23. h5 {[%clk 0:02:33.7]} 23...
Qc5 {[%clk 0:02:27.3]} 24. Qb3 {[%clk 0:02:34.3]} 24... d5 {[%clk 0:02:24.8]}
25. hxg6 {[%clk 0:02:29.1]} 25... hxg6 {[%clk 0:02:25.9]} 26. a3 {[%clk
0:02:22.9]} 26... Rad8 {[%clk 0:02:18.5]} 27. Rh1 {[%clk 0:02:08.6]} 27... Bf8
{[%clk 0:02:14.6]} 28. Rxf4 {[%clk 0:02:05]} 28... Bg7 {[%clk 0:02:15.8]} 29.
Rfh4 {[%clk 0:01:48.6]} 29... Re3 {[%clk 0:02:12.6]} 30. f4 {[%clk 0:01:44.6]}
30... Rde8 {[%clk 0:02:10.9]} 31. Ka2 {[%clk 0:01:31.9]} 31... Re1 {[%clk
0:02:06.4]} 32. f5 {[%clk 0:01:27.1]} 32... Rxh1 {[%clk 0:02:01.4]} 33. Rxh1
{[%clk 0:01:26.7]} 33... gxf5 {[%clk 0:02:02.6]} 34. Kb1 {[%clk 0:01:14.7]}
34... f4 {[%clk 0:02:00.1]} 35. Bh7+ {[%clk 0:01:13.6]} 35... Kf8 {[%clk
0:02:00.5]} 36. Qf3 {[%clk 0:01:01]} 36... Qd4 {[%clk 0:01:42.9]} 37. c3 {[%clk
0:01:01.6]} 37... Qd2 {[%clk 0:01:44]} 38. Rd1 {[%clk 0:00:50.9]} 38... Re1
{[%clk 0:01:42.3]} 39. Rxe1 {[%clk 0:00:52.1]} 39... Qxe1+ {[%clk 0:01:44.2]}
40. Ka2 {[%clk 0:00:53.6]} 40... Qd2 {[%clk 0:01:41.5]} 41. Qg4 {[%clk
0:00:46.1]} 41... Qe3 {[%clk 0:01:01.6]} 42. Qc8+ {[%clk 0:00:36]} 42... Qe8
{[%clk 0:00:55.7]} 43. Qxa6 {[%clk 0:00:28.6]} 43... f3 {[%clk 0:00:55.2]} 44.
Qd6+ {[%clk 0:00:28.5]} 44... Qe7 {[%clk 0:00:56.1]} 45. Qb8+ {[%clk 0:00:22.8]}
45... Qe8 {[%clk 0:00:57.2]} 46. Qd6+ {[%clk 0:00:16.3]} 46... Qe7 {[%clk
0:00:58.4]} 47. Qxd5 {[%clk 0:00:14.3]} 47... Qe6 {[%clk 0:00:58.2]} 48. Qxe6
{[%clk 0:00:14.6]} 48... fxe6 {[%clk 0:01:00.1]} 49. Bd3 {[%clk 0:00:15.7]}
49... Ke7 {[%clk 0:00:45.9]} 50. Kb3 {[%clk 0:00:14.3]} 50... Kd6 {[%clk
0:00:41.6]} 51. Bxb5 {[%clk 0:00:15.3]} 51... e5 {[%clk 0:00:39.3]} 52. Bd3
{[%clk 0:00:16.2]} 52... Kd5 {[%clk 0:00:40.7]} 53. Kc2 {[%clk 0:00:17.2]} 53...
e4 {[%clk 0:00:42]} 54. Bf1 {[%clk 0:00:18.2]} 54... e3 {[%clk 0:00:42.1]} 55.
Kd3 {[%clk 0:00:17.6]} 55... e2 {[%clk 0:00:42.4]} 56. Bxe2 {[%clk 0:00:18.5]}
56... fxe2 {[%clk 0:00:44.3]} 57. Kxe2 {[%clk 0:00:20.2]} 57... Kc4 {[%clk
0:00:45.7]} 58. Ke3 {[%clk 0:00:20.6]} 58... Kb3 {[%clk 0:00:45.8]} 59. g6
{[%clk 0:00:21.7]} 59... Kxb2 {[%clk 0:00:40]} 60. c4 {[%clk 0:00:23.1]} 60...
Kc3 {[%clk 0:00:35.9]} 61. c5 {[%clk 0:00:18.2]} 1-0

[Event "*** Titled Tuesday Blitz"]
[Site "Chess.com"]
[Date "2019.11.05"]
[Round "2"]
[White "anesar92"]
[Black "1995Tiger"]
[Result "1/2-1/2"]
[WhiteElo "2674"]
[BlackElo "2066"]
[TimeControl "180+2"]
[EndTime "13:25:56 PST"]
[Termination "Game drawn by agreement"]

1. e4 {[%clk 0:03:01.9]} 1... c5 {[%clk 0:03:00.6]} 2. Nf3 {[%clk 0:03:02.7]}
2... Nc6 {[%clk 0:03:02.2]} 3. Bb5 {[%clk 0:03:03.3]} 3... g6 {[%clk 0:03:03.2]}
4. c3 {[%clk 0:03:04.6]} 4... Bg7 {[%clk 0:03:02.9]} 5. d4 {[%clk 0:03:03]} 5...
Qa5 {[%clk 0:03:02]} 6. a4 {[%clk 0:02:58.5]} 6... cxd4 {[%clk 0:03:01.6]} 7.
O-O {[%clk 0:02:59.4]} 7... Nf6 {[%clk 0:03:00.4]} 8. e5 {[%clk 0:02:57.8]} 8...
Nd5 {[%clk 0:03:01.5]} 9. cxd4 {[%clk 0:02:58.5]} 9... O-O {[%clk 0:03:00]} 10.
Bd2 {[%clk 0:02:57.6]} 10... Qd8 {[%clk 0:02:58.3]} 11. Nc3 {[%clk 0:02:55.4]}
11... Nxc3 {[%clk 0:02:57]} 12. bxc3 {[%clk 0:02:57.3]} 12... d6 {[%clk
0:02:58.6]} 13. exd6 {[%clk 0:02:57]} 13... Qxd6 {[%clk 0:02:59.4]} 14. Re1
{[%clk 0:02:58.6]} 14... Bf5 {[%clk 0:02:57.3]} 15. h3 {[%clk 0:02:55.3]} 15...
Rac8 {[%clk 0:02:54.9]} 16. Qe2 {[%clk 0:02:53.3]} 16... Be6 {[%clk 0:02:42.8]}
17. Bd3 {[%clk 0:02:50.7]} 17... Bd5 {[%clk 0:02:40]} 18. Ng5 {[%clk 0:02:49.5]}
18... e6 {[%clk 0:02:28.8]} 19. Rab1 {[%clk 0:02:46.8]} 19... Na5 {[%clk
0:02:24.4]} 20. Ne4 {[%clk 0:02:46]} 20... Bxe4 {[%clk 0:02:25.1]} 21. Qxe4
{[%clk 0:02:44]} 21... b6 {[%clk 0:02:23.7]} 22. h4 {[%clk 0:02:43]} 22... h5
{[%clk 0:02:14]} 23. Rb5 {[%clk 0:02:37.2]} 23... Nc4 {[%clk 0:01:59.2]} 24. Bf4
{[%clk 0:02:28.9]} 24... Qc6 {[%clk 0:01:49.3]} 25. Qe2 {[%clk 0:02:23.2]} 25...
Nd6 {[%clk 0:01:43.5]} 26. Bxd6 {[%clk 0:02:23.1]} 26... Qxd6 {[%clk 0:01:45.4]}
27. Rb3 {[%clk 0:02:21.2]} 27... Qd5 {[%clk 0:01:42.9]} 28. Reb1 {[%clk
0:02:19.8]} 28... Rc7 {[%clk 0:01:40.4]} 29. Be4 {[%clk 0:02:00.1]} 29... Qd6
{[%clk 0:01:38.3]} 30. g3 {[%clk 0:01:58.8]} 30... Rfc8 {[%clk 0:01:39]} 31. Qd3
{[%clk 0:01:58.3]} 31... e5 {[%clk 0:01:34.3]} 32. dxe5 {[%clk 0:01:51.7]} 32...
Qxe5 {[%clk 0:01:34.3]} 33. c4 {[%clk 0:01:51.1]} 33... Rxc4 {[%clk 0:01:29.6]}
34. Bg2 {[%clk 0:01:51.9]} 34... Rxa4 {[%clk 0:01:23.7]} 35. Rb5 {[%clk
0:01:50.3]} 35... Qd4 {[%clk 0:01:21.9]} 36. Qb3 {[%clk 0:01:46.7]} 36... Ra1
{[%clk 0:01:16.2]} 37. Rxa1 {[%clk 0:01:46.1]} 37... Qxa1+ {[%clk 0:01:16.6]}
38. Kh2 {[%clk 0:01:48]} 38... Qd4 {[%clk 0:01:14]} 39. Qf3 {[%clk 0:01:45]}
39... Rc3 {[%clk 0:01:09.8]} 40. Qe2 {[%clk 0:01:45.7]} 40... Rc8 {[%clk
0:00:58.5]} 41. Rd5 {[%clk 0:01:45.9]} 41... Qb2 {[%clk 0:00:55.8]} 42. Qf3
{[%clk 0:01:44.3]} 42... Qf6 {[%clk 0:00:55.3]} 43. Qe2 {[%clk 0:01:42.8]} 43...
Rd8 {[%clk 0:00:54.9]} 44. Rxd8+ {[%clk 0:01:32.9]} 44... Qxd8 {[%clk
0:00:56.8]} 45. Qb5 {[%clk 0:01:33.3]} 45... Bd4 {[%clk 0:00:54.2]} 46. Qe2
{[%clk 0:01:29.2]} 46... Qf6 {[%clk 0:00:53]} 47. f4 {[%clk 0:01:30.1]} 47...
Kg7 {[%clk 0:00:53.6]} 48. Bd5 {[%clk 0:01:30.2]} 48... Qd6 {[%clk 0:00:51.6]}
49. Qe4 {[%clk 0:01:30.4]} 49... Bc5 {[%clk 0:00:49.5]} 50. f5 {[%clk
0:01:29.4]} 50... Qe7 {[%clk 0:00:44.4]} 51. Qf3 {[%clk 0:01:27.4]} 51... Qf6
{[%clk 0:00:41.9]} 52. Be4 {[%clk 0:01:28.4]} 52... Qb2+ {[%clk 0:00:37.8]} 53.
Kh3 {[%clk 0:01:29.6]} 53... Bg1 {[%clk 0:00:38.4]} 54. Qg2 {[%clk 0:01:24.6]}
54... Qxg2+ {[%clk 0:00:38.4]} 55. Kxg2 {[%clk 0:01:26.5]} 55... Bc5 {[%clk
0:00:38.8]} 56. Kf3 {[%clk 0:01:26]} 56... Kf6 {[%clk 0:00:36.9]} 57. fxg6
{[%clk 0:01:26.9]} 57... fxg6 {[%clk 0:00:38.8]} 58. g4 {[%clk 0:01:27.1]} 58...
a5 {[%clk 0:00:36.7]} 59. gxh5 {[%clk 0:01:25.1]} 59... gxh5 {[%clk 0:00:37.9]}
60. Bc6 {[%clk 0:01:27]} 60... Bb4 {[%clk 0:00:34.6]} 61. Be8 {[%clk 0:01:27.3]}
61... Ke5 {[%clk 0:00:33.2]} 62. Ke2 {[%clk 0:01:26.4]} 62... Kd4 {[%clk
0:00:31.7]} 63. Kd1 {[%clk 0:01:27.4]} 63... Kc3 {[%clk 0:00:31]} 64. Kc1 {[%clk
0:01:28.4]} 64... Be7 {[%clk 0:00:28.7]} 65. Kb1 {[%clk 0:01:27.9]} 65... Bxh4
{[%clk 0:00:28.3]} 66. Bxh5 {[%clk 0:01:28.9]} 66... b5 {[%clk 0:00:29.7]} 67.
Ka2 {[%clk 0:01:29.6]} 67... b4 {[%clk 0:00:29.4]} 68. Bd1 {[%clk 0:01:29.9]}
68... Kc4 {[%clk 0:00:23.1]} 69. Be2+ {[%clk 0:01:29.1]} 69... Kc5 {[%clk
0:00:22.7]} 70. Kb3 {[%clk 0:01:30.2]} 70... Kb6 {[%clk 0:00:24]} 71. Bh5 {[%clk
0:01:30.9]} 71... Be7 {[%clk 0:00:24.4]} 72. Be8 {[%clk 0:01:32.3]} 72... Bd6
{[%clk 0:00:25.7]} 73. Ba4 {[%clk 0:01:32.1]} 73... Bc5 {[%clk 0:00:26.3]} 74.
Be8 {[%clk 0:01:26.8]} 74... Bd6 {[%clk 0:00:25.5]} 75. Ba4 {[%clk 0:01:28.7]}
75... Bc5 {[%clk 0:00:26.5]} 1/2-1/2

[Event "*** Titled Tuesday Blitz"]
[Site "Chess.com"]
[Date "2019.11.05"]
[Round "2"]
[White "JSPrepz"]
[Black "vovachesss"]
[Result "1-0"]
[WhiteElo "2827"]
[BlackElo "2566"]
[TimeControl "180+2"]
[EndTime "13:26:22 PST"]
[Termination "JSPrepz won by resignation"]

1. e4 {[%clk 0:03:01.9]} 1... c5 {[%clk 0:02:58]} 2. Nf3 {[%clk 0:03:00.3]} 2...
Nc6 {[%clk 0:02:59.4]} 3. b4 {[%clk 0:02:57.1]} 3... Nxb4 {[%clk 0:02:54.2]} 4.
c3 {[%clk 0:02:55]} 4... Nc6 {[%clk 0:02:55.2]} 5. d4 {[%clk 0:02:56.1]} 5...
cxd4 {[%clk 0:02:57.1]} 6. cxd4 {[%clk 0:02:56.8]} 6... d6 {[%clk 0:02:43.6]} 7.
Nc3 {[%clk 0:02:56.6]} 7... g6 {[%clk 0:02:29.6]} 8. Rb1 {[%clk 0:02:57.5]} 8...
Bg7 {[%clk 0:02:30.3]} 9. h4 {[%clk 0:02:58.5]} 9... h5 {[%clk 0:02:20.7]} 10.
Be3 {[%clk 0:02:55.1]} 10... Nf6 {[%clk 0:02:20.5]} 11. Bc4 {[%clk 0:02:51.2]}
11... O-O {[%clk 0:02:15.8]} 12. O-O {[%clk 0:02:50.1]} 12... Ng4 {[%clk
0:02:15.3]} 13. Bg5 {[%clk 0:02:49.5]} 13... Qa5 {[%clk 0:02:07.9]} 14. Nd5
{[%clk 0:02:43.4]} 14... e5 {[%clk 0:01:46.2]} 15. Ne7+ {[%clk 0:02:27.3]} 15...
Nxe7 {[%clk 0:01:35.5]} 16. Bxe7 {[%clk 0:02:29.2]} 16... Re8 {[%clk 0:01:36.9]}
17. Bxd6 {[%clk 0:02:22.1]} 17... exd4 {[%clk 0:01:38.4]} 18. Ng5 {[%clk
0:02:20.7]} 18... Be6 {[%clk 0:00:38.2]} 19. Bxe6 {[%clk 0:02:01.2]} 19... fxe6
{[%clk 0:00:40.1]} 20. Qf3 {[%clk 0:02:02.5]} 20... Rf8 {[%clk 0:00:21.9]} 21.
Bxf8 {[%clk 0:01:56.1]} 21... Rxf8 {[%clk 0:00:23.8]} 22. Qb3 {[%clk 0:01:56.4]}
22... Qe5 {[%clk 0:00:12.4]} 23. Qxe6+ {[%clk 0:01:33]} 23... Qxe6 {[%clk
0:00:09.2]} 24. Nxe6 {[%clk 0:01:34.9]} 24... Rf7 {[%clk 0:00:10.1]} 25. Nxg7
{[%clk 0:01:36.2]} 25... Kxg7 {[%clk 0:00:11.4]} 26. Rfd1 {[%clk 0:01:31.8]}
26... Rd7 {[%clk 0:00:12.8]} 27. Rb5 {[%clk 0:01:28.5]} 27... Nf6 {[%clk
0:00:12.3]} 28. e5 {[%clk 0:01:29]} 28... Ne4 {[%clk 0:00:12.8]} 29. e6 {[%clk
0:01:26.9]} 29... Re7 {[%clk 0:00:14.1]} 30. Re5 {[%clk 0:01:14.8]} 30... Nd6
{[%clk 0:00:08.5]} 31. Rxd4 {[%clk 0:01:14.5]} 31... Kf6 {[%clk 0:00:10.4]} 32.
Re2 {[%clk 0:01:02.1]} 32... Rxe6 {[%clk 0:00:08.9]} 33. Rf4+ {[%clk 0:01:02.1]}
33... Nf5 {[%clk 0:00:09.3]} 34. Rxe6+ {[%clk 0:01:02.8]} 34... Kxe6 {[%clk
0:00:11.2]} 35. Ra4 {[%clk 0:00:57.6]} 35... a6 {[%clk 0:00:11.8]} 36. Rb4
{[%clk 0:00:56.9]} 36... b5 {[%clk 0:00:12.8]} 37. a4 {[%clk 0:00:56.4]} 37...
Nd6 {[%clk 0:00:14.5]} 38. axb5 {[%clk 0:00:55.8]} 38... axb5 {[%clk 0:00:16.4]}
39. Kf1 {[%clk 0:00:49.3]} 39... Kd5 {[%clk 0:00:17.8]} 40. Rf4 {[%clk
0:00:50.4]} 40... Nc4 {[%clk 0:00:12.1]} 41. Ke2 {[%clk 0:00:43.9]} 41... b4
{[%clk 0:00:13.3]} 42. Kd3 {[%clk 0:00:43]} 42... Ne5+ {[%clk 0:00:11.4]} 43.
Kc2 {[%clk 0:00:42.5]} 43... Kc5 {[%clk 0:00:12.5]} 44. Rf6 {[%clk 0:00:38.3]}
44... Kc4 {[%clk 0:00:10.7]} 45. Rf4+ {[%clk 0:00:39.4]} 45... Kc5 {[%clk
0:00:09.4]} 46. Kb3 {[%clk 0:00:38.9]} 46... Nd3 {[%clk 0:00:09.7]} 47. Rf6
{[%clk 0:00:36.2]} 47... Ne5 {[%clk 0:00:10.5]} 48. f4 {[%clk 0:00:33.9]} 48...
Nd3 {[%clk 0:00:11.5]} 49. g3 {[%clk 0:00:25]} 49... Kd4 {[%clk 0:00:12]} 50.
Rxg6 {[%clk 0:00:23.8]} 50... Ke4 {[%clk 0:00:13.9]} 51. Re6+ {[%clk 0:00:24.9]}
51... Kf5 {[%clk 0:00:12.9]} 52. Rd6 {[%clk 0:00:25.3]} 52... Nc1+ {[%clk
0:00:11.1]} 53. Kxb4 {[%clk 0:00:24.8]} 53... Ne2 {[%clk 0:00:13]} 54. Rd5+
{[%clk 0:00:25.2]} 54... Kg4 {[%clk 0:00:06.7]} 55. Rg5+ {[%clk 0:00:27.1]}
55... Kf3 {[%clk 0:00:07.1]} 56. f5 {[%clk 0:00:28.6]} 56... Nd4 {[%clk
0:00:07.7]} 57. f6 {[%clk 0:00:29.5]} 57... Ne6 {[%clk 0:00:07.5]} 58. f7 {[%clk
0:00:30.5]} 58... Ke4 {[%clk 0:00:07.9]} 59. Rg8 {[%clk 0:00:30.4]} 59... Kf3
{[%clk 0:00:09.4]} 60. f8=Q+ {[%clk 0:00:31.6]} 60... Nxf8 {[%clk 0:00:10.5]}
61. Rxf8+ {[%clk 0:00:33.5]} 61... Kxg3 {[%clk 0:00:12.4]} 62. Kc3 {[%clk
0:00:16.7]} 62... Kxh4 {[%clk 0:00:14.3]} 63. Kd3 {[%clk 0:00:17.1]} 63... Kg3
{[%clk 0:00:15.1]} 64. Rg8+ {[%clk 0:00:17.8]} 64... Kf3 {[%clk 0:00:12.4]} 65.
Rh8 {[%clk 0:00:18]} 65... Kg4 {[%clk 0:00:13.4]} 66. Ke3 {[%clk 0:00:19.5]}
66... h4 {[%clk 0:00:15]} 67. Kf2 {[%clk 0:00:21]} 67... Kh3 {[%clk 0:00:16.3]}
68. Kg1 {[%clk 0:00:21.7]} 68... Kg3 {[%clk 0:00:17.5]} 69. Kh1 {[%clk
0:00:22.8]} 69... Kh3 {[%clk 0:00:18.7]} 70. Rh7 {[%clk 0:00:23.2]} 70... Kg3
{[%clk 0:00:19.9]} 71. Ra7 {[%clk 0:00:24.5]} 71... Kh3 {[%clk 0:00:21.8]} 72.
Ra3+ {[%clk 0:00:25.8]} 72... Kg4 {[%clk 0:00:23.3]} 73. Kh2 {[%clk 0:00:27.7]}
1-0